bitfinex/quotes_BTCUSD_20250331
["timestamp","ask_amount","ask_price","bid_price","bid_amount"]
[1743404849153,0.012134,82413.0,82408.0,0.390694]
[1743404849385,0.012134,82413.0,82408.0,0.148]
[1743404849591,0.012134,82413.0,82408.0,0.145]
[1743404849592,0.242688,82411.0,82408.0,0.145]
[1743404849812,0.242691,82409.0,82408.0,0.145]
[1743404850041,0.242691,82409.0,82408.0,0.146]
[1743404850212,0.242691,82409.0,82408.0,0.147]
[1743404850373,0.33935482,82409.0,82408.0,0.147]
[1743404850557,0.26169542,82409.0,82408.0,0.147]
[1743404850916,0.26169542,82409.0,82408.0,0.146]
[1743404851124,0.26169542,82409.0,82408.0,0.143]
[1743404851337,0.26169542,82409.0,82408.0,0.145]
[1743404851466,0.26169542,82409.0,82408.0,0.147]
[1743404851679,0.37887006,82409.0,82408.0,0.14692]
[1743404851882,0.37887006,82409.0,82408.0,0.002]
[1743404852106,0.37887006,82409.0,82408.0,0.14496]
[1743404852375,0.27382942,82409.0,82408.0,0.14796]
[1743404852739,0.27382942,82409.0,82408.0,0.14496]
[1743404853371,0.27382942,82409.0,82408.0,0.14596]
[1743404854198,0.27382942,82409.0,82408.0,0.002]
[1743404854645,0.01900442,82409.0,82408.0,0.257828]
[1743404855067,0.01900442,82409.0,82408.0,0.400828]
[1743404855251,0.01900442,82409.0,82408.0,0.398828]
[1743404855458,0.01900442,82409.0,82408.0,0.400828]
[1743404856067,0.01900442,82409.0,82408.0,0.388694]
[1743404856672,0.01900442,82409.0,82408.0,0.146]
[1743404856673,0.27382942,82409.0,82408.0,0.146]
[1743404856876,0.254825,82409.0,82408.0,0.14588]
[1743404860208,0.27383004,82409.0,82408.0,0.14588]
[1743404863498,0.57383004,82409.0,82408.0,0.003]
[1743404864801,0.25485,82401.0,82400.0,0.14296]
[1743404866048,0.3555745,82401.0,82400.0,0.14296]
[1743404866249,0.3555745,82401.0,82399.0,0.63032]
[1743404866250,0.254853,82400.0,82399.0,0.63032]
[1743404866978,0.27386087,82400.0,82399.0,0.63032]
[1743404867415,0.254853,82400.0,82399.0,0.63032]
[1743404867779,0.42346155,82400.0,82399.0,0.63032]
[1743404868180,0.42346155,82400.0,82399.0,0.63132]
[1743404868435,0.72346155,82400.0,82399.0,0.001]
[1743404868623,0.254896,82386.0,82385.0,0.14292]
[1743404868830,0.254919,82379.0,82369.0,0.10871593]
[1743404869012,0.254946,82370.0,82369.0,0.10871593]
[1743404869167,0.254946,82370.0,82369.0,0.25187593]
[1743404869373,0.254946,82370.0,82369.0,0.10871593]
[1743404869577,0.29778802,82370.0,82369.0,0.10871593]
[1743404869986,0.01214,82369.0,82368.0,0.14312]
[1743404870192,0.01214,82369.0,82368.0,0.14326096]
[1743404870812,0.02433131,82369.0,82368.0,0.14326096]
[1743404871170,0.01214,82369.0,82368.0,0.00614096]
[1743404871374,0.01214,82369.0,82368.0,0.00014096]
[1743404871826,0.01214,82369.0,82368.0,0.00414096]
[1743404872090,0.11601819,82369.0,82368.0,0.00414096]
[1743404873385,0.01214,82369.0,82368.0,0.00714096]
[1743404874132,0.254949,82369.0,82368.0,0.00714096]
[1743404874610,0.26730887,82369.0,82368.0,0.00714096]
[1743404875127,0.26730887,82369.0,82368.0,0.00314096]
[1743404875322,0.26730887,82369.0,82368.0,0.00014096]
[1743404875624,0.26730887,82369.0,82368.0,0.00314096]
[1743404876783,0.26730887,82369.0,82368.0,0.00514096]
[1743404878473,0.01214,82371.0,82368.0,0.00514096]
[1743404878787,0.242809,82370.0,82368.0,0.00514096]
[1743404879004,0.012139,82373.0,82368.0,0.00514096]
[1743404879005,0.012139,82373.0,82369.0,0.242809]
[1743404879323,0.242802,82372.0,82370.0,0.242806]
[1743404879466,0.242802,82372.0,82369.0,0.242809]
[1743404879672,0.25510701,82372.0,82368.0,0.24795296]
[1743404879880,0.02444501,82372.0,82368.0,0.24795296]
[1743404880066,0.242807,82370.0,82368.0,0.00514096]
[1743404880273,0.03131801,82372.0,82368.0,0.00314096]
[1743404880470,0.254949,82369.0,82368.0,0.00314096]
[1743404880714,0.254949,82369.0,82368.0,0.14782096]
[1743404881167,0.254949,82369.0,82368.0,0.14482096]
[1743404881326,0.254949,82369.0,82368.0,0.14782096]
[1743404881544,0.254949,82369.0,82368.0,0.14682096]
[1743404881683,0.019013,82372.0,82371.0,0.242803]
[1743404881884,0.019013,82372.0,82371.0,0.42372783]
[1743404882084,0.019013,82372.0,82371.0,0.51416868]
[1743404882535,0.019013,82372.0,82371.0,0.49962783]
[1743404883363,0.019013,82372.0,82371.0,0.50162783]
[1743404884287,0.019013,82372.0,82371.0,0.50562783]
[1743404884650,0.019013,82372.0,82371.0,0.50362783]
[1743404884855,0.019013,82372.0,82371.0,0.50962783]
[1743404885956,0.019013,82372.0,82371.0,0.52416868]
[1743404887364,0.24276,82386.0,82383.0,0.242766]
[1743404887569,0.24276,82386.0,82382.0,0.24277]
[1743404887570,0.242753,82389.0,82384.0,0.386485]
[1743404887773,0.242756,82388.0,82385.0,0.242762]
[1743404887974,0.242749,82390.0,82386.0,0.012137]
[1743404888174,0.24275,82389.0,82387.0,0.242754]
[1743404888560,0.01206988,82391.0,82389.0,0.242748]
[1743404888762,0.54274,82393.0,82390.0,0.242747]
[1743404889239,0.242742,82392.0,82389.0,0.254887]
[1743404889703,0.312136,82395.0,82387.0,0.001]
[1743404889912,0.25489,82388.0,82387.0,0.001]
[1743404890681,0.242753,82388.0,82387.0,0.001]
[1743404890882,0.25489,82388.0,82387.0,0.001]
[1743404891066,0.242762,82385.0,82380.0,0.012138]
[1743404891268,0.242762,82385.0,82381.0,0.242773]
[1743404892137,0.2617725,82385.0,82381.0,0.242773]
[1743404892704,0.2739105,82385.0,82380.0,0.012138]
[1743404892883,0.2739105,82385.0,82384.0,0.14572]
[1743404893554,0.2739105,82385.0,82384.0,0.14672]
[1743404894176,0.29662083,82385.0,82384.0,0.14672]
[1743404895926,0.37968901,82385.0,82384.0,0.003]
[1743404896346,0.34652083,82385.0,82384.0,0.003]
[1743404896551,0.64652083,82385.0,82384.0,0.003]
[1743404896901,0.72332083,82385.0,82384.0,0.003]
[1743404897346,0.70931033,82385.0,82384.0,1e-06]
[1743404897962,0.254949,82369.0,82368.0,0.00014096]
[1743404899127,0.27765933,82369.0,82368.0,0.00014096]
[1743404899317,0.27765933,82369.0,82368.0,0.00214096]
[1743404900513,0.27765933,82369.0,82368.0,0.00314096]
[1743404900712,0.27765933,82369.0,82368.0,0.01528096]
[1743404900713,0.02271033,82369.0,82368.0,0.01528096]
[1743404900975,0.02271033,82369.0,82368.0,0.00314096]
[1743404901183,0.02271033,82369.0,82368.0,0.25809296]
[1743404901480,0.012139,82373.0,82368.0,0.25809296]
[1743404901716,0.242809,82369.0,82368.0,0.00314096]
[1743404901907,0.27396227,82369.0,82368.0,0.00314096]
[1743404902430,0.27396227,82369.0,82368.0,0.00114096]
[1743404902832,0.27396227,82369.0,82368.0,0.00014096]
[1743404903708,0.29669348,82369.0,82368.0,0.00014096]
[1743404903916,0.29669348,82369.0,82368.0,0.00214096]
[1743404904275,0.29669348,82369.0,82368.0,0.00114096]
[1743404904680,0.29669348,82369.0,82368.0,0.00314096]
[1743404906684,0.28455348,82369.0,82368.0,0.00314096]
[1743404907273,0.26554021,82369.0,82368.0,0.00314096]
[1743404908379,0.02273121,82369.0,82368.0,0.00314096]
[1743404908589,0.02273121,82369.0,82368.0,0.24595296]
[1743404908940,0.26554021,82369.0,82368.0,0.00314096]
[1743404909089,0.27768021,82369.0,82368.0,0.00314096]
[1743404909299,0.26554021,82369.0,82368.0,0.00314096]
[1743404911597,0.27768021,82369.0,82368.0,0.00314096]
[1743404912004,0.40787805,82369.0,82368.0,0.14666096]
[1743404912408,0.29669373,82369.0,82368.0,0.00314096]
[1743404913252,0.3080669,82369.0,82368.0,0.00314096]
[1743404917399,0.28905338,82369.0,82368.0,0.00314096]
[1743404919918,0.58905338,82369.0,82368.0,0.00314096]
[1743404920291,0.66695338,82369.0,82368.0,0.00314096]
[1743404920506,0.66695338,82369.0,82368.0,0.00114096]
[1743404920507,0.78723821,82369.0,82368.0,0.00114096]
[1743404920705,0.255005,82351.0,82350.0,0.62856096]
[1743404920909,0.255005,82351.0,82350.0,0.77162195]
[1743404921108,0.255005,82351.0,82350.0,0.62870195]
[1743404921352,0.255005,82351.0,82350.0,0.77162195]
[1743404921898,0.27402249,82351.0,82350.0,0.77562195]
[1743404922683,0.28597272,82351.0,82350.0,0.77562195]
[1743404922857,0.30870393,82351.0,82350.0,0.77562195]
[1743404923238,0.30870393,82351.0,82350.0,0.62870195]
[1743404923457,0.30870393,82351.0,82350.0,0.63370195]
[1743404923685,0.3200771,82351.0,82350.0,0.63370195]
[1743404924405,0.3200771,82351.0,82350.0,0.00514099]
[1743404924647,0.3200771,82351.0,82350.0,0.00214099]
[1743404925045,0.3200771,82351.0,82350.0,0.00414099]
[1743404925243,0.3200771,82351.0,82350.0,0.00214099]
[1743404925649,0.3200771,82351.0,82350.0,0.00314099]
[1743404927284,0.30105961,82351.0,82350.0,0.00314099]
[1743404928654,0.33743173,82351.0,82350.0,0.00314099]
[1743404931817,0.32007753,82351.0,82350.0,0.00314099]
[1743404936252,0.37497841,82351.0,82350.0,0.00314099]
[1743404936541,0.32007753,82351.0,82350.0,0.00314099]
[1743404937476,0.30105961,82351.0,82350.0,0.00314099]
[1743404940440,0.32007784,82351.0,82350.0,0.00314099]
[1743404944298,0.62007784,82351.0,82350.0,0.00314099]
[1743404947360,0.60105961,82351.0,82350.0,0.00314099]
[1743404947694,0.72134444,82351.0,82350.0,0.00314099]
[1743404948122,0.85164444,82351.0,82350.0,0.00314099]
[1743404948282,0.85164444,82351.0,82350.0,4.099e-05]
[1743404948910,0.555033,82342.0,82341.0,0.004]
[1743404949502,0.555055,82335.0,82334.0,0.14168]
[1743404949703,0.255073,82329.0,82327.0,0.14204]
[1743404950432,0.38082618,82329.0,82327.0,0.14204]
[1743404950656,0.38082618,82329.0,82313.0,0.0496]
[1743404950657,0.25512,82314.0,82313.0,0.0496]
[1743404950857,0.25512,82314.0,82313.0,0.00047025]
[1743404951060,0.31430219,82314.0,82313.0,0.00047025]
[1743404951260,0.32658023,82314.0,82313.0,0.00047025]
[1743404951671,0.37519923,82314.0,82313.0,0.00047025]
[1743404952473,0.37519923,82314.0,82313.0,0.00447025]
[1743404952651,0.37519923,82314.0,82313.0,0.00047025]
[1743404952874,0.10780119,82314.0,82313.0,0.00447025]
[1743404953027,0.10780119,82314.0,82313.0,0.08267025]
[1743404953238,0.10780119,82314.0,82313.0,0.09481825]
[1743404953565,0.10780119,82314.0,82313.0,0.13227025]
[1743404953951,0.07820758,82314.0,82313.0,0.13227025]
[1743404954361,0.07820758,82314.0,82313.0,0.00747025]
[1743404954558,0.11993002,82314.0,82313.0,0.00747025]
[1743404954939,0.41993002,82314.0,82313.0,0.00747025]
[1743404955345,0.42493002,82314.0,82313.0,0.00747025]
[1743404955548,0.42493002,82314.0,82283.0,0.012153]
[1743404955549,0.012153,82282.0,82266.0,0.0826]
[1743404955761,0.012151,82291.0,82266.0,0.0826]
[1743404955762,0.555265,82267.0,82266.0,0.0752]
[1743404956110,0.555265,82267.0,82260.0,0.0468]
[1743404956111,0.243116,82265.0,82260.0,0.0468]
[1743404956323,0.243116,82265.0,82255.0,0.88622]
[1743404956324,0.255271,82265.0,82264.0,0.25307593]
[1743404956798,0.012155,82266.0,82264.0,0.25321703]
[1743404957031,0.012155,82265.0,82264.0,0.10885703]
[1743404957655,0.03035466,82265.0,82264.0,0.10885703]
[1743404957885,0.04172944,82265.0,82264.0,0.10885703]
[1743404958110,0.40091163,82265.0,82264.0,0.10885703]
[1743404958693,0.38975663,82265.0,82264.0,0.11085703]
[1743404958844,0.38975663,82265.0,82264.0,0.0142961]
[1743404959255,0.08875663,82265.0,82264.0,0.0152961]
[1743404959870,0.08875663,82265.0,82264.0,0.13558093]
[1743404960290,0.0895925,82265.0,82264.0,0.13758093]
[1743404960504,0.0895925,82265.0,82264.0,0.15212178]
[1743404960718,0.05314152,82265.0,82264.0,0.15212178]
[1743404961274,0.05314152,82265.0,82264.0,0.23472178]
[1743404961485,0.04176674,82265.0,82264.0,0.23472178]
[1743404961681,0.01903553,82265.0,82264.0,0.23472178]
[1743404962085,0.01903553,82265.0,82264.0,0.23272178]
[1743404962289,0.01903553,82265.0,82264.0,0.36418093]
[1743404962689,0.01903553,82265.0,82264.0,0.28158093]
[1743404963212,0.01903553,82265.0,82264.0,0.27858093]
[1743404963354,0.01903553,82265.0,82264.0,0.28058093]
[1743404964023,0.04159507,82265.0,82264.0,0.28058093]
[1743404965614,0.01903553,82265.0,82264.0,0.28058093]
[1743404967414,0.07077401,82281.0,82274.0,0.012154]
[1743404967616,0.07077401,82281.0,82275.0,0.012154]
[1743404968069,0.243078,82278.0,82275.0,0.243087]
[1743404968273,0.255225,82280.0,82276.0,0.243082]
[1743404968460,0.243075,82279.0,82276.0,0.243082]
[1743404968997,0.2664966,82280.0,82276.0,0.243082]
[1743404968998,0.2664966,82280.0,82277.0,0.24308]
[1743404969212,0.2543436,82280.0,82277.0,0.24308]
[1743404969627,0.05861992,82278.0,82277.0,0.24308]
[1743404969830,0.05861992,82278.0,82276.0,0.243082]
[1743404970027,0.05861992,82278.0,82277.0,0.243081]
[1743404970442,0.07765517,82278.0,82276.0,0.243082]
[1743404970649,0.32073517,82278.0,82275.0,0.255239]
[1743404970850,0.0112716,82277.0,82276.0,0.243084]
[1743404971255,0.0112716,82277.0,82276.0,0.255238]
[1743404972061,0.06989152,82277.0,82276.0,0.255238]
[1743404972264,0.08793798,82277.0,82276.0,0.257238]
[1743404972466,0.08793798,82277.0,82276.0,0.258238]
[1743404973547,0.08793798,82277.0,82276.0,0.37852283]
[1743404973859,0.08793798,82277.0,82276.0,0.258238]
[1743404975304,0.05186418,82277.0,82276.0,0.258238]
[1743404975508,0.03381772,82277.0,82276.0,0.258238]
[1743404977282,0.06998298,82277.0,82276.0,0.258238]
[1743404977855,0.08809149,82277.0,82276.0,0.258238]
[1743404978739,0.08766187,82277.0,82276.0,0.258238]
[1743404980496,0.10669688,82277.0,82276.0,0.258238]
[1743404982775,0.10669688,82277.0,82276.0,0.37852283]
[1743404983774,0.10669688,82277.0,82276.0,0.12328483]
[1743404984126,0.10669688,82277.0,82276.0,0.37852283]
[1743404987097,0.08766187,82277.0,82276.0,0.37852283]
[1743404987303,0.06955336,82277.0,82276.0,0.37852283]
[1743404988136,0.0333881,82277.0,82276.0,0.37852283]
[1743404989176,0.01084198,82277.0,82276.0,0.37852283]
[1743404991625,0.02987621,82277.0,82276.0,0.37852283]
[1743404997224,0.02987621,82277.0,82276.0,0.52628283]
[1743404997409,0.01084198,82277.0,82276.0,0.52628283]
[1743404997811,0.01084198,82277.0,82276.0,0.51412883]
[1743404998481,0.01084198,82277.0,82276.0,0.52628283]
[1743404999434,0.01084198,82277.0,82276.0,0.60298283]
[1743405000202,0.01084198,82277.0,82276.0,0.37852283]
[1743405000400,0.02987653,82277.0,82276.0,0.28307883]
[1743405000608,0.02987653,82277.0,82276.0,0.52616283]
[1743405001163,0.02987653,82277.0,82276.0,0.51400883]
[1743405001785,0.02987653,82277.0,82276.0,0.52616283]
[1743405004087,0.02987653,82277.0,82276.0,0.393724]
[1743405004291,0.02987653,82277.0,82276.0,0.405878]
[1743405006507,0.02987653,82277.0,82276.0,0.003]
[1743405006765,0.28511153,82277.0,82276.0,0.15028]
[1743405007289,0.26607698,82277.0,82276.0,0.15036]
[1743405007775,0.28887308,82277.0,82276.0,0.15036]
[1743405007977,0.27487308,82277.0,82276.0,0.15036]
[1743405008987,0.27487308,82277.0,82276.0,0.003]
[1743405009147,0.57487308,82277.0,82276.0,0.15032]
[1743405009576,0.57487308,82277.0,82276.0,0.001]
[1743405009926,0.69877308,82277.0,82276.0,0.002]
[1743405010128,0.70377308,82277.0,82276.0,0.002]
[1743405010422,0.72281089,82277.0,82276.0,0.002]
[1743405010597,0.74781089,82277.0,82276.0,1e-06]
[1743405010821,0.87209572,82277.0,82276.0,1e-06]
[1743405011024,0.75181089,82277.0,82276.0,1e-06]
[1743405011405,0.555265,82267.0,82266.0,0.002]
[1743405011790,0.555303,82255.0,82254.0,0.14736]
[1743405013156,0.5780991,82255.0,82254.0,0.14730113]
[1743405013580,0.59713903,82255.0,82254.0,0.14730113]
[1743405013778,0.59713903,82255.0,82254.0,0.14830113]
[1743405014489,0.60939268,82255.0,82254.0,0.14830113]
[1743405017377,0.59035275,82255.0,82254.0,0.14830113]
[1743405019165,0.5780991,82255.0,82254.0,0.14830113]
[1743405019985,0.59026682,82255.0,82254.0,0.14830113]
[1743405020831,0.61973988,82255.0,82254.0,0.14830113]
[1743405021687,0.65801442,82255.0,82254.0,0.00014113]
[1743405021862,0.67705547,82255.0,82254.0,0.00014113]
[1743405022068,0.75485547,82255.0,82254.0,1.3e-07]
[1743405022488,0.75985547,82255.0,82254.0,1.3e-07]
[1743405022667,0.86808323,82255.0,82254.0,1.3e-07]
[1743405022864,0.585312,82252.0,82251.0,0.00396013]
[1743405023226,0.662112,82252.0,82251.0,0.00410129]
[1743405023765,0.67104448,82252.0,82251.0,0.00410129]
[1743405023963,0.66604448,82252.0,82251.0,0.00410129]
[1743405024168,0.66604448,82252.0,82236.0,0.002]
[1743405024169,0.012159,82239.0,82236.0,0.002]
[1743405024405,0.3,82238.0,82236.0,0.0024708]
[1743405024631,0.543199,82237.0,82236.0,0.0024708]
[1743405024750,0.555358,82237.0,82236.0,0.0024708]
[1743405025426,0.5781541,82237.0,82236.0,0.0024708]
[1743405026072,0.58948989,82237.0,82236.0,0.0024708]
[1743405026295,0.59048989,82237.0,82236.0,0.0024708]
[1743405026491,0.62673117,82237.0,82236.0,0.0024708]
[1743405027196,0.64485017,82237.0,82236.0,0.0024708]
[1743405029526,0.38949217,82237.0,82236.0,0.0024708]
[1743405029938,0.63269117,82237.0,82236.0,0.0024708]
[1743405030144,0.08949217,82237.0,82236.0,0.42551763]
[1743405030369,0.10853515,82237.0,82236.0,0.50771763]
[1743405031346,0.04849777,82237.0,82236.0,0.50771763]
[1743405031617,0.01904298,82237.0,82236.0,0.50871763]
[1743405033687,0.01904298,82237.0,82236.0,0.65531763]
[1743405035466,0.01904298,82237.0,82236.0,0.66985848]
[1743405036247,0.01904298,82237.0,82236.0,1.30145848]
[1743405037209,0.3,82256.0,82254.0,0.243147]
[1743405037390,0.3,82256.0,82255.0,0.1464]
[1743405037607,0.3,82256.0,82255.0,0.389546]
[1743405037829,0.3113641,82256.0,82255.0,0.389546]
[1743405038032,0.3113641,82256.0,82255.0,0.1464]
[1743405038432,0.243155,82252.0,82248.0,0.243161]
[1743405038634,0.012159,82241.0,82236.0,0.6340708]
[1743405038834,0.243193,82240.0,82237.0,0.389797]
[1743405039054,0.25535,82240.0,82238.0,0.1466]
[1743405039258,0.243173,82246.0,82242.0,0.012159]
[1743405039583,0.243173,82246.0,82242.0,0.241184]
[1743405040116,0.0113641,82251.0,82243.0,0.012159]
[1743405040322,0.26221687,82246.0,82243.0,0.24318]
[1743405040530,0.26221687,82246.0,82244.0,0.243177]
[1743405040730,0.01904287,82246.0,82245.0,0.243175]
[1743405041308,0.01904287,82246.0,82242.0,0.255337]
[1743405041512,0.01904287,82246.0,82244.0,0.243178]
[1743405041668,0.01904287,82246.0,82244.0,0.257336]
[1743405041880,0.05231667,82245.0,82244.0,0.257336]
[1743405042359,0.05231667,82245.0,82244.0,0.255336]
[1743405042901,0.05231667,82245.0,82244.0,0.256336]
[1743405043741,0.03411521,82245.0,82244.0,0.334836]
[1743405043944,0.03411521,82245.0,82244.0,0.45412083]
[1743405044698,0.03411521,82245.0,82244.0,0.45512083]
[1743405044898,0.03411521,82245.0,82244.0,0.404656]
[1743405045128,0.03411521,82245.0,82244.0,0.246178]
[1743405045327,0.03411521,82245.0,82244.0,0.404656]
[1743405050342,0.05315806,82245.0,82244.0,0.404656]
[1743405051509,0.05315806,82245.0,82244.0,0.14932]
[1743405051712,0.05315806,82245.0,82244.0,0.392498]
[1743405053027,0.05315806,82245.0,82244.0,0.404656]
[1743405053266,0.05315806,82245.0,82244.0,0.52494083]
[1743405053427,0.05315806,82245.0,82244.0,0.64964083]
[1743405055735,0.05315806,82245.0,82244.0,0.64034206]
[1743405057367,0.03411521,82245.0,82244.0,0.64034206]
[1743405058502,0.03411521,82245.0,82244.0,0.63998471]
[1743405059068,0.243184,82243.0,82237.0,0.012159]
[1743405059273,0.03411521,82245.0,82244.0,0.243178]
[1743405059894,0.03411521,82245.0,82244.0,0.255336]
[1743405060400,0.05315823,82245.0,82244.0,0.255336]
[1743405060697,0.05315823,82245.0,82240.0,0.26572483]
[1743405060911,0.29633423,82245.0,82243.0,0.243181]
[1743405061138,0.0113641,82244.0,82243.0,0.243181]
[1743405061345,0.0113641,82244.0,82243.0,0.25534]
[1743405061562,0.243183,82243.0,82240.0,0.50891383]
[1743405061756,0.243183,82243.0,82241.0,0.243186]
[1743405061893,0.03411521,82244.0,82243.0,0.243181]
[1743405062112,0.03411521,82244.0,82243.0,0.25534]
[1743405062490,0.03411521,82244.0,82243.0,0.25634]
[1743405063017,0.03411521,82244.0,82243.0,0.244181]
[1743405063229,0.28945121,82244.0,82243.0,0.001]
[1743405063447,0.37136533,82244.0,82243.0,0.14612]
[1743405063656,0.03411521,82244.0,82243.0,0.14612]
[1743405063871,0.28945121,82244.0,82243.0,0.14612]
[1743405064508,0.32594373,82244.0,82243.0,0.14612]
[1743405064917,0.07060773,82244.0,82243.0,0.40146]
[1743405065134,0.08885114,82244.0,82243.0,0.49432827]
[1743405065554,0.05235862,82244.0,82243.0,0.49432827]
[1743405066361,0.05335862,82244.0,82243.0,0.49432827]
[1743405066535,0.05235862,82244.0,82243.0,0.49432827]
[1743405066950,0.03411521,82244.0,82243.0,0.49532827]
[1743405067668,0.03411521,82244.0,82243.0,0.40146]
[1743405069158,0.03411521,82244.0,82243.0,0.40134]
[1743405070359,0.05315814,82244.0,82243.0,0.40134]
[1743405070584,0.05315814,82244.0,82243.0,0.158159]
[1743405070960,0.05315814,82244.0,82243.0,0.40134]
[1743405071160,0.05315814,82244.0,82243.0,0.146]
[1743405071371,0.05315814,82244.0,82243.0,0.40114]
[1743405072388,0.05315814,82244.0,82243.0,0.52142483]
[1743405073103,0.05315814,82244.0,82243.0,0.12128483]
[1743405073333,0.05315814,82244.0,82243.0,0.36446583]
[1743405073533,0.05315814,82244.0,82243.0,0.50926583]
[1743405073735,0.05315814,82244.0,82243.0,0.52142483]
[1743405074139,0.05315814,82244.0,82243.0,0.40114]
[1743405074777,0.05315814,82244.0,82243.0,0.4011]
[1743405075874,0.05315814,82244.0,82243.0,0.001]
[1743405076054,0.05315814,82244.0,82243.0,0.14576]
[1743405076428,0.05315814,82244.0,82243.0,0.4011]
[1743405076730,0.29633614,82244.0,82243.0,0.14576]
[1743405077196,0.30849414,82244.0,82243.0,0.14576]
[1743405077458,0.03411521,82244.0,82243.0,0.14576]
[1743405077620,0.03411521,82244.0,82243.0,0.388941]
[1743405077798,0.03411521,82244.0,82243.0,0.4011]
[1743405078551,0.27729321,82244.0,82243.0,0.14576]
[1743405078742,0.28945121,82244.0,82243.0,0.14576]
[1743405079371,0.03411521,82244.0,82243.0,0.14576]
[1743405079529,0.28945121,82244.0,82243.0,0.14576]
[1743405079724,0.03411521,82244.0,82243.0,0.14576]
[1743405080344,0.29633686,82244.0,82243.0,0.14576]
[1743405080822,0.30849486,82244.0,82243.0,0.14576]
[1743405081211,0.30849486,82244.0,82243.0,0.001]
[1743405081420,0.49774275,82244.0,82243.0,0.001]
[1743405081624,0.39029486,82244.0,82243.0,0.14564]
[1743405081830,0.39029486,82244.0,82243.0,0.001]
[1743405082109,0.69029486,82244.0,82243.0,0.001]
[1743405082321,0.25534,82243.0,82242.0,0.63156]
[1743405082693,0.255358,82237.0,82236.0,0.0024708]
[1743405083317,0.61459921,82237.0,82236.0,0.0024708]
[1743405083517,0.62596331,82237.0,82236.0,0.0024708]
[1743405084218,0.70776331,82237.0,82236.0,0.0024708]
[1743405084809,0.243243,82222.0,82221.0,0.63556]
[1743405085074,0.255405,82222.0,82221.0,0.78044]
[1743405085662,0.27445326,82222.0,82221.0,0.78044]
[1743405085869,0.32153247,82222.0,82221.0,0.78044]
[1743405086016,0.07828947,82222.0,82221.0,1.035848]
[1743405086222,0.08965357,82222.0,82221.0,0.78044]
[1743405086446,0.33289657,82222.0,82221.0,0.78044]
[1743405086880,0.34505857,82222.0,82221.0,0.78044]
[1743405087147,0.32601031,82222.0,82221.0,0.78044]
[1743405087311,0.32601031,82222.0,82221.0,0.63556]
[1743405087515,0.32601031,82222.0,82221.0,0.7808]
[1743405087735,0.32601031,82222.0,82221.0,0.63556]
[1743405087916,0.63843299,82222.0,82221.0,0.78076]
[1743405089112,0.63843299,82222.0,82221.0,0.63556]
[1743405089344,0.63843299,82222.0,82221.0,0.78128]
[1743405090118,0.65748156,82222.0,82221.0,0.78128]
[1743405093129,0.08965388,82222.0,82221.0,0.78128]
[1743405093468,0.33289688,82222.0,82221.0,0.78128]
[1743405093928,0.34505888,82222.0,82221.0,0.78128]
[1743405094736,0.30856878,82222.0,82221.0,0.78128]
[1743405097270,0.34494022,82222.0,82221.0,0.78128]
[1743405097447,0.32589165,82222.0,82221.0,0.78128]
[1743405098351,0.07048665,82222.0,82221.0,0.78128]
[1743405098510,0.31372965,82222.0,82221.0,0.78128]
[1743405098689,0.07048665,82222.0,82221.0,0.78128]
[1743405098895,0.32589165,82222.0,82221.0,0.78128]
[1743405100209,0.31372965,82222.0,82221.0,0.78128]
[1743405100408,0.33277795,82222.0,82221.0,0.78128]
[1743405100616,0.08953495,82222.0,82221.0,0.78128]
[1743405101144,0.08953495,82222.0,82221.0,1.024526]
[1743405101353,0.08953495,82222.0,82221.0,1.036688]
[1743405101567,0.08953495,82222.0,82221.0,1.024526]
[1743405101802,0.05316351,82222.0,82221.0,1.024526]
[1743405102016,0.05316351,82222.0,82221.0,1.036688]
[1743405103129,0.05316351,82222.0,82221.0,1.024526]
[1743405103333,0.29640651,82222.0,82221.0,0.78128]
[1743405104746,0.30856851,82222.0,82221.0,0.78128]
[1743405107408,0.28952021,82222.0,82221.0,0.78128]
[1743405107647,0.28952021,82222.0,82221.0,0.63556]
[1743405107853,0.28952021,82222.0,82221.0,0.78208]
[1743405108286,0.28952021,82222.0,82221.0,0.63556]
[1743405108502,0.70980504,82222.0,82221.0,0.63556]
[1743405108705,0.70980504,82222.0,82221.0,0.782]
[1743405109106,0.70980504,82222.0,82221.0,0.63556]
[1743405109324,0.70980504,82222.0,82221.0,0.78244]
[1743405109765,0.62596854,82222.0,82221.0,0.78244]
[1743405109959,0.38272554,82222.0,82221.0,0.78244]
[1743405110669,0.37056354,82222.0,82221.0,0.78244]
[1743405111708,0.37056354,82222.0,82221.0,0.15088]
[1743405111979,0.38961248,82222.0,82221.0,0.15088]
[1743405112216,0.42534886,82222.0,82221.0,0.15088]
[1743405112683,0.43751086,82222.0,82221.0,0.15088]
[1743405113102,0.68075386,82222.0,82221.0,0.15088]
[1743405113519,0.64501748,82222.0,82221.0,0.15088]
[1743405114582,0.65692348,82222.0,82221.0,0.15088]
[1743405115214,0.40151848,82222.0,82221.0,0.394126]
[1743405115451,0.41368048,82222.0,82221.0,0.15088]
[1743405115663,0.65692348,82222.0,82221.0,0.15088]
[1743405116248,0.62047515,82222.0,82221.0,0.15088]
[1743405117235,0.62047515,82222.0,82221.0,0.15056]
[1743405117437,0.60142621,82222.0,82221.0,0.15056]
[1743405120525,0.62047495,82222.0,82221.0,0.15056]
[1743405120895,0.59772384,82222.0,82221.0,0.15056]
[1743405122511,0.34231884,82222.0,82221.0,0.15056]
[1743405123093,0.34231884,82222.0,82221.0,0.23286]
[1743405123595,0.33095474,82222.0,82221.0,0.23286]
[1743405124018,0.03095474,82222.0,82221.0,0.488268]
[1743405125923,0.03095474,82222.0,82221.0,0.476106]
[1743405127345,0.011906,82222.0,82221.0,0.488268]
[1743405127869,0.011906,82222.0,82221.0,0.60855283]
[1743405129361,0.011906,82222.0,82221.0,0.62309368]
[1743405129871,0.011906,82222.0,82221.0,0.66959368]
[1743405130476,0.03095116,82222.0,82221.0,0.66959368]
[1743405131264,1.6e-07,82222.0,82221.0,0.66959368]
[1743405131474,0.00046906,82237.0,82236.0,0.255362]
[1743405131629,0.00046906,82237.0,82236.0,0.66766768]
[1743405135422,6e-08,82237.0,82236.0,0.66766768]
[1743405136567,0.00100006,82237.0,82236.0,0.66766768]
[1743405136971,6e-08,82237.0,82236.0,0.66766768]
[1743405137169,0.3,82269.0,82248.0,0.40006585]
[1743405137385,0.30014066,82269.0,82268.0,0.242107]
[1743405137609,0.30014066,82269.0,82268.0,0.1482]
[1743405138085,0.30014066,82269.0,82268.0,0.403462]